fUSD/lending_fUSD_20240714
["ID","MTS","AMOUNT","RATE_DAILY","PERIOD"]
[332045836,1720942266239,-151.0,0.00013808,2]
[332045837,1720942266248,-1285.15,0.00013808,2]
[332045838,1720942266257,-151.0,0.00013808,2]
[332045839,1720942266269,-1102.17,0.00013808,2]
[332045840,1720942266279,-500.0,0.00013808,2]
[332045841,1720942266288,-1226.59,0.00013808,2]
[332045842,1720942266297,-500.0,0.00013808,2]
[332045843,1720942266307,-652.74,0.00013808,2]
[332045844,1720942266316,-500.0,0.00013808,2]
[332045845,1720942266326,-500.0,0.00013808,2]
[332045846,1720942266336,-500.0,0.00013808,2]
[332045847,1720942266345,-500.0,0.00013808,2]
[332045848,1720942266354,-529.57,0.00013808,2]
[332045849,1720942266364,-151.0,0.00013808,2]
[332045850,1720942266373,-151.0,0.00013808,2]
[332045851,1720942266382,-500.0,0.00013808,2]
[332045852,1720942266392,-500.0,0.00013808,2]
[332045853,1720942266401,-807.57,0.00013808,2]
[332045854,1720942266410,-151.0,0.00013808,2]
[332045855,1720942266420,-727.14,0.00013808,2]
[332045856,1720942266429,-500.0,0.00013808,2]
[332045857,1720942266439,-500.0,0.00013808,2]
[332045858,1720942266448,-500.0,0.00013808,2]
[332045859,1720942266457,-500.0,0.00013808,2]
[332045860,1720942266467,-1172.02,0.00013808,2]
[332045861,1720942266476,-500.0,0.00013808,2]
[332045862,1720942266486,-722.7,0.00013808,2]
[332045863,1720942266495,-500.0,0.00013808,2]
[332045864,1720942266505,-500.0,0.00013808,2]
[332045865,1720942266514,-151.0,0.00013808,2]
[332045866,1720942266523,-151.0,0.00013808,2]
[332045867,1720942266532,-151.0,0.00013808,2]
[332045868,1720942266541,-151.0,0.00013808,2]
[332045869,1720942266551,-500.0,0.00013808,2]
[332045870,1720942266560,-500.0,0.00013808,2]
[332045871,1720942266570,-500.0,0.00013808,2]
[332045872,1720942266579,-1133.18,0.00013808,2]
[332045873,1720942266588,-261.091657,0.00013808,2]
[332045874,1720942266597,-854.5,0.00013808,2]
[332045875,1720942266607,-771.88,0.00013808,2]
[332045876,1720942266616,-151.0,0.00013808,2]
[332045877,1720942266626,-151.0,0.00013808,2]
[332045878,1720942266636,-684.73,0.00013808,2]
[332045879,1720942266645,-151.0,0.00013808,2]
[332045880,1720942266707,-151.0,0.00013808,2]
[332045881,1720942266716,-500.0,0.00013808,2]
[332045882,1720942266726,-261.091657,0.00013808,2]
[332045883,1720942266735,-500.0,0.00013808,2]
[332045884,1720942266746,-542.04,0.00013808,2]
[332045885,1720942266755,-500.0,0.00013808,2]
[332045886,1720942266766,-500.0,0.00013808,2]
[332045887,1720942266775,-760.0,0.00013808,2]
[332045888,1720942266784,-1329.65,0.00013808,2]
[332045889,1720942266795,-151.0,0.00013808,2]
[332045890,1720942266805,-671.57,0.00013808,2]
[332045891,1720942266817,-500.0,0.00013808,2]
[332045892,1720942266827,-537.07,0.00013808,2]
[332045893,1720942266838,-489.71680039,0.00013808,2]
[332045894,1720942266849,-151.0,0.00013808,2]
[332045895,1720942266859,-151.0,0.00013808,2]
[332045896,1720942266870,-998.05,0.00013808,2]
[332045897,1720942266879,-165.122692,0.00013808,2]
[332045898,1720942266889,-825.57,0.00013808,2]
[332045899,1720942266899,-500.0,0.00013808,2]
[332045900,1720942266909,-500.0,0.00013808,2]
[332045901,1720942266920,-1029.31,0.00013808,2]
[332045902,1720942266931,-500.0,0.00013808,2]
[332045903,1720942266940,-500.0,0.00013808,2]
[332045904,1720942266951,-917.72,0.00013808,2]
[332045905,1720942266961,-500.0,0.00013808,2]
[332045906,1720942266972,-500.0,0.00013808,2]
[332045907,1720942266983,-982.29,0.00013808,2]
[332045908,1720942266994,-500.0,0.00013808,2]
[332045909,1720942267003,-151.0,0.00013808,2]
[332045910,1720942267014,-951.65,0.00013808,2]
[332045911,1720942267025,-500.0,0.00013808,2]
[332045912,1720942267035,-704.36,0.00013808,2]
[332045913,1720942267046,-1035.1,0.00013808,2]
[332045914,1720942267056,-151.0,0.00013808,2]
[332045915,1720942267067,-500.0,0.00013808,2]
[332045916,1720942267078,-1431.59,0.00013808,2]
[332045917,1720942267090,-500.0,0.00013808,2]
[332045918,1720942267101,-500.0,0.00013808,2]
[332045919,1720942267112,-500.0,0.00013808,2]
[332045920,1720942267121,-151.0,0.00013808,2]
[332045921,1720942267131,-218.467657,0.00013808,2]
[332045922,1720942267141,-656.52,0.00013808,2]
[332045923,1720942267151,-691.63,0.00013808,2]
[332045924,1720942267160,-885.34,0.00013808,2]
[332045925,1720942267171,-500.0,0.00013808,2]
[332045926,1720942267181,-932.27,0.00013808,2]
[332045927,1720942267190,-755.4,0.00013808,2]
[332045928,1720942267199,-500.0,0.00013808,2]
[332045929,1720942267208,-500.0,0.00013808,2]
[332045930,1720942267217,-500.0,0.00013808,2]
[332045931,1720942267229,-500.0,0.00013808,2]
[332045932,1720942267241,-660.12897,0.00013808,2]
[332045933,1720942267250,-500.0,0.00013808,2]
[332045934,1720942267259,-500.0,0.00013808,2]
[332045935,1720942267268,-500.0,0.00013808,2]
[332045936,1720942267277,-1330.71,0.00013808,2]
[332045937,1720942267286,-709.14,0.00013808,2]
[332045938,1720942267295,-500.0,0.00013808,2]
[332045939,1720942267304,-500.0,0.00013808,2]
[332045940,1720942267313,-500.0,0.00013808,2]
[332045941,1720942267323,-1039.28,0.00013808,2]
[332045942,1720942267332,-1414.71,0.00013808,2]
[332045943,1720942267342,-151.0,0.00013808,2]
[332045944,1720942267351,-151.0,0.00013808,2]
[332045945,1720942267360,-921.54,0.00013808,2]
[332045946,1720942267370,-1241.59,0.00013808,2]
[332045947,1720942267379,-1286.96,0.00013808,2]
[332045948,1720942267388,-500.0,0.00013808,2]
[332045949,1720942267398,-561.54,0.00013808,2]
[332045950,1720942267408,-500.0,0.00013808,2]
[332045951,1720942267417,-989.45,0.00013808,2]
[332045952,1720942267426,-577.66,0.00013808,2]
[332045953,1720942267436,-318.27615191,0.00013808,2]
[332045954,1720942267445,-756.93,0.00013808,2]
[332045955,1720942267455,-500.0,0.00013808,2]
[332045956,1720942267464,-814.48,0.00013808,2]
[332045957,1720942267473,-500.0,0.00013808,2]
[332045958,1720942267483,-757.05,0.00013808,2]
[332045959,1720942267493,-500.0,0.00013808,2]
[332045960,1720942267502,-671.61,0.00013808,2]
[332045961,1720942267511,-1128.18,0.00013808,2]
[332045962,1720942267521,-379.02136133,0.00013808,2]
[332045963,1720942267530,-500.0,0.00013808,2]
[332045964,1720942267540,-935.07,0.00013808,2]
[332045965,1720942267549,-919.0,0.00013808,2]
[332045966,1720942267558,-500.0,0.00013808,2]
[332045967,1720942267567,-635.76,0.00013808,2]
[332045968,1720942267577,-500.0,0.00013808,2]
[332045969,1720942267586,-1320.51,0.00013808,2]
[332045970,1720942267596,-500.0,0.00013808,2]
[332045971,1720942267605,-977.85,0.00013808,2]
[332045972,1720942267615,-500.0,0.00013808,2]
[332045973,1720942267625,-709.37,0.00013808,2]
[332045974,1720942267634,-2318.83,0.00013808,2]
[332045975,1720942267643,-1012.38,0.00013808,2]
[332045976,1720942267653,-541.82,0.00013808,2]
[332045977,1720942267662,-1185.29,0.00013808,2]
[332045978,1720942267671,-594.41,0.00013808,2]
[332045979,1720942267681,-1827.05,0.00013808,2]
[332045980,1720942267690,-500.0,0.00013808,2]
[332045981,1720942267699,-940.12,0.00013808,2]
[332045982,1720942267708,-500.0,0.00013808,2]
[332045983,1720942267718,-868.55,0.00013808,2]
[332045984,1720942267727,-500.0,0.00013808,2]
[332045985,1720942267737,-1547.09,0.00013808,2]
[332045986,1720942267747,-1029.01,0.00013808,2]
[332045987,1720942267756,-1009.0,0.00013808,2]
[332045988,1720942267766,-500.0,0.00013808,2]
[332045989,1720942267775,-500.0,0.00013808,2]
[332045990,1720942267784,-1613.15,0.00013808,2]
[332045991,1720942267793,-500.0,0.00013808,2]
[332045992,1720942267802,-500.0,0.00013808,2]
[332045993,1720942267812,-500.0,0.00013808,2]
[332045994,1720942267821,-500.0,0.00013808,2]
[332045995,1720942267831,-543.14,0.00013808,2]
[332045996,1720942267840,-590.61,0.00013808,2]
[332045997,1720942267850,-606.89,0.00013808,2]
[332045998,1720942267859,-525.26,0.00013808,2]
[332045999,1720942267868,-151.0,0.00013808,2]
[332046000,1720942267877,-796.34,0.00013808,2]
[332046001,1720942267887,-1793.21,0.00013808,2]
[332046002,1720942267896,-500.0,0.00013808,2]
[332046003,1720942267905,-500.0,0.00013808,2]
[332046004,1720942267915,-1872.39,0.00013808,2]
[332046005,1720942267924,-836.83,0.00013808,2]
[332046006,1720942267933,-500.0,0.00013808,2]
[332046007,1720942267942,-500.0,0.00013808,2]
[332046008,1720942267952,-393.19120519,0.00013808,2]
[332046009,1720942267961,-549.08,0.00013808,2]
[332046010,1720942267970,-500.0,0.00013808,2]
[332046011,1720942267979,-500.0,0.00013808,2]
[332046012,1720942267990,-500.0,0.00013808,2]
[332046013,1720942267998,-1316.31,0.00013808,2]
[332046014,1720942268008,-151.0,0.00013808,2]
[332046015,1720942268019,-789.42,0.00013808,2]
[332046016,1720942268028,-151.0,0.00013808,2]
[332046017,1720942268037,-1199.78,0.00013808,2]
[332046018,1720942268046,-500.0,0.00013808,2]
[332046019,1720942268055,-500.0,0.00013808,2]
[332046020,1720942268066,-500.0,0.00013808,2]
[332046021,1720942268075,-500.0,0.00013808,2]
[332046022,1720942268084,-500.0,0.00013808,2]
[332046023,1720942268095,-500.0,0.00013808,2]
[332046024,1720942268104,-1565.64,0.00013808,2]
[332046025,1720942268114,-500.0,0.00013808,2]
[332046026,1720942268123,-500.0,0.00013808,2]
[332046027,1720942268132,-500.0,0.00013808,2]
[332046028,1720942268142,-2244.95,0.00013808,2]
[332046029,1720942268151,-616.69,0.00013808,2]
[332046030,1720942268161,-1968.59,0.00013808,2]
[332046031,1720942268170,-1020.94,0.00013808,2]
[332046032,1720942268179,-500.0,0.00013808,2]
[332046033,1720942268188,-159.06204326,0.00013808,2]
[332046034,1720942268197,-647.92,0.00013808,2]
[332046035,1720942268206,-500.0,0.00013808,2]
[332046036,1720942268216,-1449.59,0.00013808,2]
[332046037,1720942268225,-1823.32,0.00013808,2]
[332046038,1720942268235,-524.76,0.00013808,2]
[332046039,1720942268247,-825.21,0.00013808,2]
[332046040,1720942268256,-545.0,0.00013808,2]
[332046041,1720942268266,-500.0,0.00013808,2]
[332046042,1720942268275,-1103.01,0.00013808,2]
[332046043,1720942268284,-649.05,0.00013808,2]
[332046044,1720942268294,-367.6509927,0.00013808,2]
[332046045,1720942268303,-630.87,0.00013808,2]
[332046046,1720942268313,-1526.18,0.00013808,2]
[332046047,1720942268322,-576.17,0.00013808,2]
[332046048,1720942268331,-500.0,0.00013808,2]
[332046049,1720942268341,-500.0,0.00013808,2]
[332046050,1720942268350,-500.0,0.00013808,2]
[332046051,1720942268359,-633.98,0.00013808,2]
[332046052,1720942268368,-1073.62,0.00013808,2]
[332046053,1720942268378,-591.18,0.00013808,2]
[332046054,1720942268387,-541.87,0.00013808,2]
[332046055,1720942268396,-1702.2,0.00013808,2]
[332046056,1720942268405,-1266.32,0.00013808,2]
[332046057,1720942268414,-702.0,0.00013808,2]
[332046058,1720942268423,-151.0,0.00013808,2]
[332046059,1720942268433,-160.427688,0.00013808,2]
[332046060,1720942268442,-524.39,0.00013808,2]
[332046061,1720942268451,-500.0,0.00013808,2]
[332046062,1720942268460,-547.05,0.00013808,2]
[332046063,1720942268469,-500.0,0.00013808,2]
[332046064,1720942268479,-151.0,0.00013808,2]
[332046065,1720942268488,-500.0,0.00013808,2]
[332046066,1720942268499,-982.43,0.00013808,2]
[332046067,1720942268508,-1368.37,0.00013808,2]
[332046068,1720942268518,-500.0,0.00013808,2]
[332046069,1720942268527,-500.0,0.00013808,2]
[332046070,1720942268536,-500.0,0.00013808,2]
[332046071,1720942268546,-500.0,0.00013808,2]
[332046072,1720942268555,-878.2,0.00013808,2]
[332046073,1720942268565,-500.0,0.00013808,2]
[332046074,1720942268574,-500.0,0.00013808,2]
[332046075,1720942268583,-151.0,0.00013808,2]
[332046076,1720942268592,-500.0,0.00013808,2]
[332046077,1720942268601,-521.67,0.00013808,2]
[332046078,1720942268610,-500.0,0.00013808,2]
[332046079,1720942268619,-1416.36,0.00013808,2]
[332046080,1720942268628,-927.78,0.00013808,2]
[332046081,1720942268637,-500.0,0.00013808,2]
[332046082,1720942268646,-500.0,0.00013808,2]
[332046083,1720942268655,-500.0,0.00013808,2]
[332046084,1720942268664,-500.0,0.00013808,2]
[332046085,1720942268673,-500.0,0.00013808,2]
[332046086,1720942268683,-500.0,0.00013808,2]
[332046087,1720942268692,-500.0,0.00013808,2]
[332046088,1720942268701,-500.0,0.00013808,2]
[332046089,1720942268710,-500.0,0.00013808,2]
[332046090,1720942268719,-868.58,0.00013808,2]
[332046091,1720942268729,-500.0,0.00013808,2]
[332046092,1720942268738,-3257.09,0.00013808,2]
[332046093,1720942268748,-500.0,0.00013808,2]
[332046094,1720942268757,-500.0,0.00013808,2]
[332046095,1720942268767,-632.99,0.00013808,2]
[332046096,1720942268776,-500.0,0.00013808,2]
[332046097,1720942268785,-500.0,0.00013808,2]
[332046098,1720942268794,-500.0,0.00013808,2]
[332046099,1720942268804,-578.15918276,0.00013808,2]
[332046100,1720942268813,-500.0,0.00013808,2]
[332046101,1720942268823,-500.0,0.00013808,2]
[332046102,1720942268831,-759.25,0.00013808,2]
[332046103,1720942268840,-500.0,0.00013808,2]
[332046104,1720942268850,-1159.67,0.00013808,2]
[332046105,1720942268859,-500.0,0.00013808,2]
[332046106,1720942268867,-500.0,0.00013808,2]
[332046107,1720942268877,-500.0,0.00013808,2]
[332046108,1720942268886,-1177.72,0.00013808,2]
[332046109,1720942268895,-500.0,0.00013808,2]
[332046110,1720942268904,-500.0,0.00013808,2]
[332046111,1720942268914,-2483.26,0.00013808,2]
[332046112,1720942268923,-500.0,0.00013808,2]
[332046113,1720942268932,-500.0,0.00013808,2]
[332046114,1720942268941,-1063.23,0.00013808,2]
[332046115,1720942268950,-500.0,0.00013808,2]
[332046116,1720942268959,-343.09165049,0.00013808,2]
[332046117,1720942268968,-926.17,0.00013808,2]
[332046118,1720942268978,-500.0,0.00013808,2]
[332046119,1720942268987,-1974.25,0.00013808,2]
[332046120,1720942268998,-763.24,0.00013808,2]
[332046121,1720942269007,-500.0,0.00013808,2]
[332046122,1720942269020,-500.0,0.00013808,2]
[332046123,1720942269030,-985.59,0.00013808,2]
[332046124,1720942269039,-151.0,0.00013808,2]
[332046125,1720942269048,-500.0,0.00013808,2]
[332046126,1720942269059,-500.0,0.00013808,2]
[332046127,1720942269068,-772.6,0.00013808,2]
[332046128,1720942269077,-368.76,0.00013808,2]
[332046129,1720942269086,-500.0,0.00013808,2]
[332046130,1720942269098,-500.0,0.00013808,2]
[332046131,1720942269107,-2774.12,0.00013808,2]
[332046132,1720942269116,-470.7,0.00013808,2]
[332046133,1720942269125,-594.69,0.00013808,2]
[332046134,1720942269134,-500.0,0.00013808,2]
[332046135,1720942269144,-1591.5,0.00013808,2]
[332046136,1720942269153,-500.0,0.00013808,2]
[332046137,1720942269162,-500.0,0.00013808,2]
[332046138,1720942269171,-500.0,0.00013808,2]
[332046139,1720942269180,-500.0,0.00013808,2]
[332046140,1720942269189,-500.0,0.00013808,2]
[332046141,1720942269198,-564.58,0.00013808,2]
[332046142,1720942269207,-500.0,0.00013808,2]
[332046143,1720942269216,-706.32,0.00013808,2]
[332046144,1720942269226,-500.0,0.00013808,2]
[332046145,1720942269235,-644.55285774,0.00013808,2]
[332046146,1720942269245,-1001.83,0.00013808,2]
[332046147,1720942269254,-500.0,0.00013808,2]
[332046148,1720942269265,-500.0,0.00013808,2]
[332046149,1720942269274,-1137.97,0.00013808,2]
[332046150,1720942269284,-1304.32,0.00013808,2]
[332046151,1720942269293,-500.0,0.00013808,2]
[332046152,1720942269302,-500.0,0.00013808,2]
[332046153,1720942269311,-844.95,0.00013808,2]
[332046154,1720942269320,-716.3,0.00013808,2]
[332046155,1720942269330,-151.0,0.00013808,2]
[332046156,1720942269340,-500.0,0.00013808,2]
[332046157,1720942269349,-2781.05,0.00013808,2]
[332046158,1720942269358,-500.0,0.00013808,2]
[332046159,1720942269367,-500.0,0.00013808,2]
[332046160,1720942269376,-151.0,0.00013808,2]
[332046161,1720942269385,-500.0,0.00013808,2]
[332046162,1720942269394,-500.0,0.00013808,2]
[332046163,1720942269405,-500.0,0.00013808,2]
[332046164,1720942269414,-500.0,0.00013808,2]
[332046165,1720942269425,-151.0,0.00013808,2]
[332046166,1720942269436,-500.0,0.00013808,2]
[332046167,1720942269448,-782.27,0.00013808,2]
[332046168,1720942269458,-9706.57,0.00013808,2]
[332046169,1720942269469,-1038.87,0.00013808,2]
[332046170,1720942269479,-546.01,0.00013808,2]
[332046171,1720942269492,-500.0,0.00013808,2]
[332046172,1720942269503,-500.0,0.00013808,2]
[332046173,1720942269513,-500.0,0.00013808,2]
[332046174,1720942269522,-500.0,0.00013808,2]
[332046175,1720942269532,-151.0,0.00013808,2]
[332046176,1720942269544,-500.0,0.00013808,2]
[332046177,1720942269555,-459.98791896,0.00013808,2]
[332046178,1720942270029,-40.01208104,0.00013808,2]
[332046179,1720942270039,-469.15581258,0.00013808,2]
[332046180,1720942270080,-26.30199664,0.00013808,2]
[332046181,1720942270089,-525.63425707,0.00013808,2]
[332046182,1720942270569,-500.0,0.00013698,2]
[332046183,1720942270578,-500.0,0.00013698,2]
[332046184,1720942270588,-500.0,0.00013698,2]
[332046185,1720942270598,-500.0,0.00013698,2]
[332046186,1720942270607,-500.0,0.00013698,2]
[332046187,1720942270617,-500.0,0.00013753,2]
[332046188,1720942270626,-500.0,0.00013753,2]
[332046189,1720942270635,-500.0,0.00013753,2]
[332046190,1720942270645,-500.0,0.00013753,2]
[332046191,1720942270654,-535.59330254,0.00013753,2]
[332046192,1720942270664,-1064.57290604,0.00013808,2]
[332046193,1720942270811,-51.20283689,0.00013808,2]
[332046194,1720942270824,-891.03,0.00013808,2]
[332046195,1720942270834,-500.0,0.00013808,2]
[332046196,1720942270844,-1089.23,0.00013808,2]
[332046197,1720942270854,-991.84,0.00013808,2]
[332046198,1720942270864,-567.63,0.00013808,2]
[332046199,1720942270874,-571.59593757,0.00013808,2]
[332046200,1720942270883,-500.0,0.00013808,2]
[332046201,1720942270893,-389.91719759,0.00013808,2]
[332046202,1720942270902,-500.0,0.00013808,2]
[332046203,1720942270912,-500.0,0.00013808,2]
[332046204,1720942270921,-500.0,0.00013808,2]
[332046205,1720942270931,-500.0,0.00013808,2]
[332046206,1720942270940,-500.0,0.00013808,2]
[332046207,1720942270950,-180.02,0.00013808,2]
[332046208,1720942270959,-500.0,0.00013808,2]
[332046209,1720942270969,-911.79042944,0.00013808,2]
[332046210,1720942270978,-58145.08215175,0.00013833,2]
[332046211,1720942270987,-669.234055,0.00013859,2]
[332046212,1720942270998,-353.572813,0.00013859,2]
[332046213,1720942271007,-451.867419,0.00013859,2]
[332046214,1720942271020,-402.669615,0.00013859,2]
[332046215,1720942271029,-371.521522,0.00013859,2]
[332046216,1720942271039,-175.951869,0.00013859,2]
[332046217,1720942271049,-169.824385,0.00013859,2]
[332046218,1720942271061,-183.927364,0.00013859,2]
[332046219,1720942271072,-183.481257,0.00013859,2]
[332046220,1720942271082,-174.239093,0.00013859,2]
[332046221,1720942271096,-500.0,0.00013862,2]
[332046222,1720942271106,-500.0,0.00013862,2]
[332046223,1720942271116,-500.0,0.00013862,2]
[332046224,1720942271126,-500.0,0.00013863,2]
[332046225,1720942271136,-500.0,0.00013863,2]
[332046226,1720942271147,-769.98,0.00013863,2]
[332046227,1720942271157,-845.84,0.00013863,2]
[332046228,1720942271167,-500.0,0.00013863,2]
[332046229,1720942271176,-772.81,0.00013863,2]
[332046230,1720942271186,-714.84,0.00013863,2]
[332046231,1720942271195,-596.58,0.00013863,2]
[332046232,1720942271206,-500.0,0.00013863,2]
[332046233,1720942271216,-663.65,0.00013863,2]
[332046234,1720942271226,-500.0,0.00013863,2]
[332046235,1720942271237,-500.0,0.00013863,2]
[332046236,1720942271248,-1078.34,0.00013863,2]
[332046237,1720942271258,-500.0,0.00013863,2]
[332046238,1720942271268,-500.0,0.00013863,2]
[332046239,1720942271278,-500.0,0.00013863,2]
[332046240,1720942271288,-896.8,0.00013863,2]
[332046241,1720942271297,-500.0,0.00013863,2]
[332046242,1720942271307,-756.47,0.00013863,2]
[332046243,1720942271317,-1107.32,0.00013863,2]
[332046244,1720942271328,-634.56,0.00013863,2]
[332046245,1720942271337,-500.0,0.00013863,2]
[332046246,1720942271347,-500.0,0.00013863,2]
[332046247,1720942271357,-500.0,0.00013863,2]
[332046248,1720942271367,-375.98129476,0.00013863,2]
[332046249,1720942271377,-635.48,0.00013863,2]
[332046250,1720942271387,-593.02429811,0.00013863,2]
[332046251,1720942271398,-582.24,0.00013863,2]
[332046252,1720942271408,-500.0,0.00013863,2]
[332046253,1720942271418,-750.32,0.00013863,2]
[332046254,1720942271429,-163.218332,0.00013863,2]
[332046255,1720942271439,-500.0,0.00013863,2]
[332046256,1720942271449,-506.81,0.00013863,2]
[332046257,1720942271459,-500.0,0.00013863,2]
[332046258,1720942271469,-802.56,0.00013863,2]
[332046259,1720942271478,-500.0,0.00013863,2]
[332046260,1720942271488,-500.0,0.00013863,2]
[332046261,1720942271498,-500.0,0.00013863,2]
[332046262,1720942271507,-500.0,0.00013863,2]
[332046263,1720942271517,-500.65,0.00013863,2]
[332046264,1720942271527,-500.0,0.00013863,2]
[332046265,1720942271537,-874.76,0.00013863,2]
[332046266,1720942271548,-500.0,0.00013863,2]
[332046267,1720942271558,-575.25,0.00013863,2]
[332046268,1720942271567,-744.79,0.00013863,2]
[332046269,1720942271576,-500.0,0.00013863,2]
[332046270,1720942271585,-151.0,0.00013863,2]
[332046271,1720942271595,-151.0,0.00013863,2]
[332046272,1720942271606,-500.0,0.00013863,2]
[332046273,1720942271616,-500.0,0.00013863,2]
[332046274,1720942271625,-500.0,0.00013863,2]
[332046275,1720942271635,-151.0,0.00013863,2]
[332046276,1720942271646,-500.0,0.00013863,2]
[332046277,1720942271657,-579.01,0.00013863,2]
[332046278,1720942271668,-500.0,0.00013863,2]
[332046279,1720942271678,-500.0,0.00013863,2]
[332046280,1720942271688,-791.1,0.00013863,2]
[332046281,1720942271700,-500.0,0.00013863,2]
[332046282,1720942271710,-500.0,0.00013863,2]
[332046283,1720942271720,-500.0,0.00013863,2]
[332046284,1720942271732,-500.0,0.00013863,2]
[332046285,1720942271742,-500.0,0.00013863,2]
[332046286,1720942271753,-151.0,0.00013863,2]
[332046287,1720942271764,-500.0,0.00013863,2]
[332046288,1720942271774,-151.0,0.00013863,2]
[332046289,1720942271785,-1162.27,0.00013863,2]
[332046290,1720942271796,-1473.34,0.00013863,2]
[332046291,1720942271808,-643.73,0.00013863,2]
[332046292,1720942271819,-500.0,0.00013863,2]
[332046293,1720942271830,-279.78743589,0.00013863,2]
[332046294,1720942271842,-500.0,0.00013863,2]
[332046295,1720942271852,-500.0,0.00013863,2]
[332046296,1720942271863,-500.0,0.00013863,2]
[332046297,1720942271874,-1110.08,0.00013863,2]
[332046298,1720942271886,-500.0,0.00013863,2]
[332046299,1720942271897,-562.82,0.00013863,2]
[332046300,1720942271907,-500.0,0.00013863,2]
[332046301,1720942271918,-500.0,0.00013863,2]
[332046302,1720942271928,-500.0,0.00013863,2]
[332046303,1720942271938,-500.0,0.00013863,2]
[332046304,1720942271948,-151.0,0.00013863,2]
[332046305,1720942271959,-500.0,0.00013863,2]
[332046306,1720942271970,-393.67884558,0.00013863,2]
[332046307,1720942271979,-586.7,0.00013863,2]
[332046308,1720942271988,-589.73,0.00013863,2]
[332046309,1720942271999,-813.87,0.00013863,2]
[332046310,1720942272008,-500.0,0.00013863,2]
[332046311,1720942272021,-500.0,0.00013863,2]
[332046312,1720942272030,-500.0,0.00013863,2]
[332046313,1720942272039,-500.0,0.00013863,2]
[332046314,1720942272049,-500.0,0.00013863,2]
[332046315,1720942272060,-500.0,0.00013863,2]
[332046316,1720942272070,-500.0,0.00013863,2]
[332046317,1720942272080,-500.0,0.00013863,2]
[332046318,1720942272089,-671.28,0.00013863,2]
[332046319,1720942272099,-151.0,0.00013863,2]
[332046320,1720942272110,-500.0,0.00013863,2]
[332046321,1720942272119,-1137.71,0.00013863,2]
[332046322,1720942272129,-500.0,0.00013863,2]
[332046323,1720942272139,-500.0,0.00013863,2]
[332046324,1720942272148,-747.56,0.00013863,2]
[332046325,1720942272160,-500.0,0.00013863,2]
[332046326,1720942272169,-500.0,0.00013863,2]
[332046327,1720942272179,-822.42,0.00013863,2]
[332046328,1720942272189,-635.64,0.00013863,2]
[332046329,1720942272199,-500.0,0.00013863,2]
[332046330,1720942272208,-514.96007579,0.00013863,2]
[332046331,1720942272218,-500.0,0.00013863,2]
[332046332,1720942272228,-1193.27,0.00013863,2]
[332046333,1720942272237,-500.0,0.00013863,2]
[332046334,1720942272248,-1079.52,0.00013863,2]
[332046335,1720942272258,-500.0,0.00013863,2]